[Event "120th Taflfelag Reykjavik-A 2020"]
[Site "Reykjavik"]
[Date "2020.10.03"]
[Round "9.3"]
[White "Kjartansson, David"]
[Black "Thorfinnsson, Bragi"]
[Result "0-1"]
[ECO "E91"]
[WhiteElo "2338"]
[BlackElo "2427"]
[Annotator "ChessBase"]
[PlyCount "65"]
[EventDate "2020.09.13"]
[EventType "tourn"]
[EventCountry "ISL"]
[SourceTitle "playchess.com"]
[Source "ChessBase"]
[SourceQuality "1"]
[TimeControl "40/5400+15:1800+30"]

1. d4 {[%emt 0:00:00]} Nf6 {[%emt 0:00:00]} 2. c4 {[%emt 0:00:00]} g6 {[%emt 0:00:41]} 3. Nc3 {[%emt 0:00:02]} Bg7 {[%emt 0:01:40]} 4. e4 {[%emt 0:00:00]} O-O {[%emt 0:00:14]} 5. Nf3 {[%emt 0:02:55]} c5 {[%emt 0:00:06]} 6. Be2 {[%emt 0:01:05]} d6 {[%emt 0:04:13]} 7. O-O {[%emt 0:00:58]} Na6 {[%emt 0:02:33]} 8. d5 {[%emt 0:06:20]} Nc7 {[%emt 0:02:16]} 9. h3 {[%emt 0:00:10]} e6 {[%emt 0:01:11]} 10. Re1 {[%emt 0:04:31]} a6 {[%emt 0:03:10]} 11. a4 {[%emt 0:00:30]} e5 {[%emt 0:03:28]} 12. Bg5 {[%emt 0:04:13]} h6 {[%emt 0:00:29]} 13. Be3 {[%emt 0:01:05]} Bd7 {[%emt 0:03:42]} 14. Rb1 {[%emt 0:10:06]} a5 {[%emt 0:03:30]} 15. Nd2 {[%emt 0:06:17]} Na6 {[%emt 0:04:30]} 16. Nb5 {[%emt 0:02:43]} Bxb5 {[%emt 0:03:45]} 17. cxb5 {[%emt 0:00:23]} Nb4 {[%emt 0:00:00]} 18. Rc1 {[%emt 0:19:05]} Nd7 {[%emt 0:03:30]} 19. Nc4 {[%emt 0:12:21]} Nb6 {[%emt 0:01:14]} 20. Nxb6 {[%emt 0:08:15]} Qxb6 {[%emt 0:00:00]} 21. Qd2 {[%emt 0:00:17]} Kh7 {[%emt 0:01:06]} 22. Bf3 {[%emt 0:06:51]} f5 {[%emt 0:02:34]} 23. Qe2 {[%emt 0:00:14]} Qd8 {[%emt 0:01:29]} 24. Bd2 {[%emt 0:01:26]} Qh4 {[%emt 0:04:18]} 25. Qc4 {[%emt 0:01:07]} Bf6 {[%emt 0:05:07]} 26. Bxb4 {[%emt 0:01:20]} axb4 {[%emt 0:00:11]} 27. b3 {[%emt 0:00:29]} Bg5 {[%emt 0:03:28]} 28. Rc2 {[%emt 0:00:00]} b6 {[%emt 0:01:10]} 29. Kh2 {[%emt 0:00:31]} Bd8 {[%emt 0:01:46]} 30. exf5 {[%emt 0:02:49]} gxf5 {[%emt 0:00:14]} 31. Qd4 {[%emt 0:01:42]} Qf4+ 32. Qxf4 {[%emt 0:00:00]} Bh4 33. Qxh4 {[%emt 0:00:00]} 0-1

[Event "120th Taflfelag Reykjavik-A 2020"]
[Site "Reykjavik"]
[Date "2020.10.02"]
[Round "9.4"]
[White "Stefansson, Vignir Vatnar"]
[Black "Einarsson, Halldor Gretar"]
[Result "1-0"]
[ECO "D94"]
[WhiteElo "2301"]
[BlackElo "2258"]
[Annotator "ChessBase"]
[PlyCount "57"]
[EventDate "2020.09.13"]
[EventType "tourn"]
[EventCountry "ISL"]
[SourceTitle "playchess.com"]
[Source "ChessBase"]
[SourceQuality "1"]
[TimeControl "40/5400+15:1800+30"]

1. d4 {[%emt 0:00:00]} Nf6 {[%emt 0:00:00]} 2. c4 {[%emt 0:00:00]} g6 {[%emt 0:00:00]} 3. Nf3 {[%emt 0:00:00]} Bg7 {[%emt 0:00:44]} 4. e3 {[%emt 0:00:00]} O-O {[%emt 0:05:14]} 5. Be2 {[%emt 0:00:00]} c6 {[%emt 0:04:34]} 6. Nc3 {[%emt 0:03:21]} d5 {[%emt 0:04:05]} 7. O-O {[%emt 0:00:00]} Bg4 {[%emt 0:15:43]} 8. Qb3 {[%emt 0:07:18]} b6 {[%emt 0:01:22]} 9. cxd5 {[%emt 0:02:21]} Nxd5 {[%emt 0:01:41]} 10. e4 {[%emt 0:02:30]} Nxc3 {[%emt 0:00:30]} 11. bxc3 {[%emt 0:00:46]} e5 {[%emt 0:07:48]} 12. Ba3 {[%emt 0:08:53]} Re8 {[%emt 0:16:40]} 13. Bc4 {[%emt 0:06:30]} Bxf3 {[%emt 0:00:00]} 14. Bxf7+ {[%emt 0:00:06]} Kh8 {[%emt 0:00:00]} 15. Bxe8 {[%emt 0:02:45]} Qxe8 {[%emt 0:14:42]} 16. gxf3 {[%emt 0:59:30]} Nd7 {[%emt 0:00:00]} 17. Rad1 {[%emt 0:00:34]} Qd8 {[%emt 0:00:33]} 18. Qe6 {[%emt 0:00:15]} exd4 {[%emt 0:02:07]} 19. cxd4 {[%emt 0:00:01]} Qg5+ {[%emt 0:00:00]} 20. Qg4 {[%emt 0:59:40]} Qa5 {[%emt 0:00:00]} 21. Be7 {[%emt 0:01:06]} Nf6 {[%emt 0:01:22]} 22. Bxf6 {[%emt 0:04:44]} Bxf6 {[%emt 0:00:00]} 23. Qe6 {[%emt 0:00:19]} Qg5+ {[%emt 0:01:14]} 24. Kh1 {[%emt 0:00:16]} Rd8 {[%emt 0:17:41]} 25. e5 {[%emt 0:00:04]} Bg7 {[%emt 0:00:21]} 26. Qxc6 {[%emt 0:00:00]} Rf8 {[%emt 0:00:20]} 27. Rg1 {[%emt 0:00:00]} Qh5 {[%emt 0:00:33]} 28. Rg3 {[%emt 0:00:00]} Bh6 {[%emt 0:01:31]} 29. e6 {[%emt 0:00:00]} 1-0

[Event "120th Taflfelag Reykjavik-A 2020"]
[Site "Reykjavik"]
[Date "2020.10.03"]
[Round "9.5"]
[White "Thorhallsson, Simon"]
[Black "Bjornsson, Sigurbjorn"]
[Result "1-0"]
[ECO "C62"]
[WhiteElo "2215"]
[BlackElo "2357"]
[Annotator "ChessBase"]
[PlyCount "68"]
[EventDate "2020.09.13"]
[EventType "tourn"]
[EventCountry "ISL"]
[SourceTitle "playchess.com"]
[Source "ChessBase"]
[SourceQuality "1"]
[TimeControl "40/5400+15:1800+30"]

1. e4 {[%emt 0:00:07]} e5 {[%emt 0:00:00]} 2. Nf3 {[%emt 0:00:08]} Nc6 {[%emt 0:00:00]} 3. Bb5 {[%emt 0:00:02]} Nge7 {[%emt 0:00:00]} 4. Nc3 {[%emt 0:04:06]} d6 {[%emt 0:00:00]} 5. d4 {[%emt 0:08:04]} Bd7 {[%emt 0:00:00]} 6. O-O {[%emt 0:04:10]} Ng6 {[%emt 0:00:00]} 7. Be3 {[%emt 0:09:32]} Be7 {[%emt 0:00:52]} 8. d5 {[%emt 0:09:31]} Nb8 {[%emt 0:00:06]} 9. Bxd7+ {[%emt 0:00:00]} Nxd7 {[%emt 0:00:00]} 10. g3 {[%emt 0:00:39]} h6 {[%emt 0:00:22]} 11. h4 {[%emt 0:06:22]} Nf6 {[%emt 0:03:05]} 12. Nh2 {[%emt 0:05:57]} Qd7 {[%emt 0:03:31]} 13. Kg2 {[%emt 0:00:34]} Nh7 {[%emt 0:06:53]} 14. Qg4 {[%emt 0:02:40]} Qxg4 {[%emt 0:02:30]} 15. Nxg4 {[%emt 0:00:00]} h5 {[%emt 0:00:00]} 16. Nh2 {[%emt 0:00:01]} c6 {[%emt 0:00:33]} 17. Rfd1 {[%emt 0:01:35]} O-O {[%emt 0:04:23]} 18. Nf1 {[%emt 0:03:17]} Rfc8 {[%emt 0:03:03]} 19. Rac1 {[%emt 0:01:39]} Bf8 {[%emt 0:02:23]} 20. f3 {[%emt 0:05:06]} Nf6 {[%emt 0:00:11]} 21. Bf2 {[%emt 0:02:52]} a6 {[%emt 0:11:53]} 22. Ne3 {[%emt 0:01:00]} Rab8 {[%emt 0:05:42]} 23. a4 {[%emt 0:03:23]} Ne7 {[%emt 0:04:45]} 24. b3 {[%emt 0:04:17]} b5 {[%emt 0:04:04]} 25. dxc6 {[%emt 0:01:54]} Rxc6 {[%emt 0:00:10]} 26. Rd3 {[%emt 0:04:22]} g6 {[%emt 0:05:33]} 27. axb5 {[%emt 0:00:41]} axb5 {[%emt 0:00:00]} 28. Ra1 {[%emt 0:00:00]} Bh6 {[%emt 0:02:01]} 29. Ncd1 {[%emt 0:00:51]} Kf8 {[%emt 0:02:15]} 30. c4 {[%emt 0:01:16]} Nd7 {[%emt 0:06:08]} 31. cxb5 {[%emt 0:01:04]} Rb7 {[%emt 0:27:22]} 32. b6 Rbxb6 {[%emt 0:00:00]} 33. Nc4 {[%emt 0:00:38]} Rb5 {[%emt 0:00:00]} 34. Ra8+ {[%emt 0:00:36]} Kg7 {[%emt 0:00:00]} 1-0